[Event "*** Titled Tuesday Blitz"]
[Site "Chess.com"]
[Date "2021.02.02"]
[Round "4"]
[White "SanchezKelvin"]
[Black "carlocapau"]
[Result "0-1"]
[WhiteElo "2465"]
[BlackElo "2321"]
[TimeControl "180+1"]
[EndTime "10:42:13 PST"]
[Termination "carlocapau won by checkmate"]

1. d4 {[%clk 0:03:00.9]} 1... Nf6 {[%clk 0:02:59.8]} 2. c4 {[%clk 0:03:01.2]}
2... g6 {[%clk 0:02:59.7]} 3. Nf3 {[%clk 0:03:01.6]} 3... Bg7 {[%clk 0:02:59.7]}
4. Nc3 {[%clk 0:02:58.8]} 4... O-O {[%clk 0:02:59.5]} 5. e4 {[%clk 0:02:58.8]}
5... d6 {[%clk 0:02:59.6]} 6. Be2 {[%clk 0:02:57]} 6... e5 {[%clk 0:02:57.1]} 7.
O-O {[%clk 0:02:57.3]} 7... Nc6 {[%clk 0:02:56.8]} 8. d5 {[%clk 0:02:57.2]} 8...
Ne7 {[%clk 0:02:57.1]} 9. Ne1 {[%clk 0:02:58.1]} 9... Nd7 {[%clk 0:02:54.8]} 10.
Nd3 {[%clk 0:02:59]} 10... f5 {[%clk 0:02:52]} 11. Bd2 {[%clk 0:02:59.4]} 11...
Nf6 {[%clk 0:02:50.5]} 12. f3 {[%clk 0:02:58.3]} 12... f4 {[%clk 0:02:50.2]} 13.
c5 {[%clk 0:02:58.2]} 13... g5 {[%clk 0:02:48.5]} 14. cxd6 {[%clk 0:02:57.8]}
14... cxd6 {[%clk 0:02:48.6]} 15. h3 {[%clk 0:02:58.7]} 15... Ng6 {[%clk
0:02:45.8]} 16. Rc1 {[%clk 0:02:57.6]} 16... Rf7 {[%clk 0:02:41.1]} 17. Qb3
{[%clk 0:02:56.7]} 17... h5 {[%clk 0:02:30.7]} 18. Nf2 {[%clk 0:02:55.4]} 18...
Bf8 {[%clk 0:02:24.6]} 19. Nb5 {[%clk 0:02:54.6]} 19... Rg7 {[%clk 0:02:13.3]}
20. Rc2 {[%clk 0:02:45.5]} 20... a6 {[%clk 0:02:12.4]} 21. Nc7 {[%clk
0:02:44.9]} 21... Rxc7 {[%clk 0:01:49.2]} 22. Ba5 {[%clk 0:02:44.3]} 22... Ne8
{[%clk 0:01:34.1]} 23. Rxc7 {[%clk 0:02:41.1]} 23... Nxc7 {[%clk 0:01:32.7]} 24.
Rc1 {[%clk 0:02:41]} 24... g4 {[%clk 0:01:15.6]} 25. Rxc7 {[%clk 0:02:35.7]}
25... Qg5 {[%clk 0:01:11.9]} 26. hxg4 {[%clk 0:02:34.1]} 26... hxg4 {[%clk
0:01:10.7]} 27. fxg4 {[%clk 0:02:32.7]} 27... b5 {[%clk 0:01:03.6]} 28. Qc2
{[%clk 0:02:10.6]} 28... Ne7 {[%clk 0:00:44.1]} 29. Bb4 {[%clk 0:01:57.1]} 29...
Qf6 {[%clk 0:00:37.9]} 30. Ba5 {[%clk 0:01:46.5]} 30... Bh6 {[%clk 0:00:36.2]}
31. Bf3 {[%clk 0:01:43.5]} 31... Rb8 {[%clk 0:00:32.1]} 32. b4 {[%clk
0:01:18.2]} 32... Bg5 {[%clk 0:00:32.1]} 33. Nh3 {[%clk 0:01:16.5]} 33... Bh4
{[%clk 0:00:31.8]} 34. Ra7 {[%clk 0:01:09.7]} 34... Qg6 {[%clk 0:00:30.4]} 35.
Bd8 {[%clk 0:01:02.3]} 35... Bxg4 {[%clk 0:00:25.6]} 36. Bxg4 {[%clk 0:00:50.1]}
36... Qxg4 {[%clk 0:00:26.5]} 37. Bxe7 {[%clk 0:00:46.5]} 37... Rc8 {[%clk
0:00:26.4]} 38. Qd2 {[%clk 0:00:22.3]} 38... Bg3 {[%clk 0:00:17.3]} 39. Bxd6
{[%clk 0:00:18.6]} 39... Rc4 {[%clk 0:00:17.2]} 40. Ra8+ {[%clk 0:00:17.8]}
40... Kf7 {[%clk 0:00:16.6]} 41. Bc5 {[%clk 0:00:16.3]} 41... Rxe4 {[%clk
0:00:16.2]} 42. d6 {[%clk 0:00:13.4]} 42... Re1+ {[%clk 0:00:16.2]} 43. Qxe1
{[%clk 0:00:12]} 43... Bxe1 {[%clk 0:00:17.1]} 44. d7 {[%clk 0:00:09.4]} 44...
f3 {[%clk 0:00:15.7]} 45. d8=Q {[%clk 0:00:03.9]} 45... Qxg2# {[%clk 0:00:15.3]}
0-1

[Event "*** Titled Tuesday Blitz"]
[Site "Chess.com"]
[Date "2021.02.02"]
[Round "4"]
[White "ybruned"]
[Black "Khnykin_Nikolay"]
[Result "1-0"]
[WhiteElo "2322"]
[BlackElo "2093"]
[TimeControl "180+1"]
[EndTime "10:42:13 PST"]
[Termination "ybruned won on time"]

1. b3 {[%clk 0:02:46.1]} 1... c5 {[%clk 0:02:56.8]} 2. Bb2 {[%clk 0:02:45.6]}
2... e6 {[%clk 0:02:56.7]} 3. e3 {[%clk 0:02:46.1]} 3... Nf6 {[%clk 0:02:54.4]}
4. Nf3 {[%clk 0:02:46.3]} 4... Be7 {[%clk 0:02:53.7]} 5. Be2 {[%clk 0:02:45.1]}
5... O-O {[%clk 0:02:53]} 6. O-O {[%clk 0:02:45.7]} 6... d5 {[%clk 0:02:52.2]}
7. d4 {[%clk 0:02:45.6]} 7... Nc6 {[%clk 0:02:51]} 8. Nbd2 {[%clk 0:02:45.9]}
8... a6 {[%clk 0:02:47.4]} 9. c4 {[%clk 0:02:46.2]} 9... b6 {[%clk 0:02:46.1]}
10. Rc1 {[%clk 0:02:44.5]} 10... Bb7 {[%clk 0:02:44.8]} 11. Qc2 {[%clk
0:02:43.1]} 11... Nb4 {[%clk 0:02:38.4]} 12. Qb1 {[%clk 0:02:42.3]} 12... dxc4
{[%clk 0:02:33.1]} 13. Nxc4 {[%clk 0:02:40.6]} 13... Be4 {[%clk 0:02:32]} 14.
Qa1 {[%clk 0:02:33.5]} 14... Nc2 {[%clk 0:02:25.7]} 15. Rxc2 {[%clk 0:02:18]}
15... Bxc2 {[%clk 0:02:23.8]} 16. Nce5 {[%clk 0:02:02.2]} 16... Nd7 {[%clk
0:02:13.9]} 17. Nxd7 {[%clk 0:01:20.1]} 17... Qxd7 {[%clk 0:02:13.3]} 18. dxc5
{[%clk 0:01:20.7]} 18... Bxc5 {[%clk 0:02:11.9]} 19. Bxg7 {[%clk 0:01:20]} 19...
Rfd8 {[%clk 0:02:06.7]} 20. Bf6 {[%clk 0:01:14.2]} 20... Be7 {[%clk 0:01:59.9]}
21. Qe5 {[%clk 0:01:07.6]} 21... Bxf6 {[%clk 0:01:52.3]} 22. Qxf6 {[%clk
0:01:06]} 22... b5 {[%clk 0:01:47.8]} 23. Ne5 {[%clk 0:00:50.6]} 23... Qe8
{[%clk 0:01:40.1]} 24. Ng4 {[%clk 0:00:41]} 24... Rd2 {[%clk 0:01:05.5]} 25. Bf3
{[%clk 0:00:33.2]} 25... Rad8 {[%clk 0:01:03.6]} 26. Qh6 {[%clk 0:00:22.8]}
26... Kh8 {[%clk 0:00:19.9]} 27. e4 {[%clk 0:00:19.6]} 27... Qf8 {[%clk
0:00:16.3]} 28. Qh4 {[%clk 0:00:15]} 28... Bd1 {[%clk 0:00:13.6]} 29. Nf6 {[%clk
0:00:11.2]} 29... Qg7 {[%clk 0:00:08.8]} 30. Bxd1 {[%clk 0:00:08.6]} 30... Rxd1
{[%clk 0:00:08.2]} 31. g3 {[%clk 0:00:07.9]} 31... Rxf1+ {[%clk 0:00:07.5]} 32.
Kxf1 {[%clk 0:00:08.5]} 32... Rd1+ {[%clk 0:00:07.3]} 33. Kg2 {[%clk 0:00:09.1]}
33... Rd2 {[%clk 0:00:05.7]} 34. Qf4 {[%clk 0:00:09]} 34... Rd8 {[%clk
0:00:02.1]} 35. e5 {[%clk 0:00:08.7]} 35... Rf8 {[%clk 0:00:01.7]} 36. Qd4
{[%clk 0:00:08.2]} 1-0

[Event "*** Titled Tuesday Blitz"]
[Site "Chess.com"]
[Date "2021.02.02"]
[Round "4"]
[White "TokChess"]
[Black "seorobert1971"]
[Result "1-0"]
[WhiteElo "2483"]
[BlackElo "2725"]
[TimeControl "180+1"]
[EndTime "10:42:15 PST"]
[Termination "TokChess won on time"]

1. Nf3 {[%clk 0:03:00.9]} 1... Nf6 {[%clk 0:03:00.1]} 2. d4 {[%clk 0:03:01.8]}
2... d5 {[%clk 0:03:00.2]} 3. Bf4 {[%clk 0:03:01.8]} 3... Bf5 {[%clk 0:02:59.8]}
4. e3 {[%clk 0:03:01.5]} 4... e6 {[%clk 0:02:59.7]} 5. Bd3 {[%clk 0:03:01.6]}
5... Bxd3 {[%clk 0:02:59.4]} 6. cxd3 {[%clk 0:03:01.7]} 6... Nbd7 {[%clk
0:02:58.9]} 7. O-O {[%clk 0:03:01.4]} 7... Be7 {[%clk 0:02:57.8]} 8. Nbd2 {[%clk
0:03:00.6]} 8... O-O {[%clk 0:02:57.4]} 9. Qc2 {[%clk 0:02:58.2]} 9... c6 {[%clk
0:02:57.1]} 10. Rfc1 {[%clk 0:02:58.1]} 10... Re8 {[%clk 0:02:55.7]} 11. Rab1
{[%clk 0:02:57.7]} 11... a5 {[%clk 0:02:55.1]} 12. Ne5 {[%clk 0:02:50.5]} 12...
Nh5 {[%clk 0:02:52.4]} 13. Nxd7 {[%clk 0:02:31.7]} 13... Nxf4 {[%clk 0:02:46.8]}
14. Ne5 {[%clk 0:02:31.5]} 14... Ne2+ {[%clk 0:02:44.5]} 15. Kh1 {[%clk
0:02:31.3]} 15... Nxc1 {[%clk 0:02:44.4]} 16. Rxc1 {[%clk 0:02:32.1]} 16... Bd6
{[%clk 0:02:43.2]} 17. Nef3 {[%clk 0:02:31.5]} 17... f6 {[%clk 0:02:41.1]} 18.
Qb3 {[%clk 0:02:31.5]} 18... Qd7 {[%clk 0:02:39.7]} 19. Kg1 {[%clk 0:02:31.5]}
19... Kh8 {[%clk 0:02:38.6]} 20. g3 {[%clk 0:02:31.6]} 20... Bb4 {[%clk
0:02:38.1]} 21. Nf1 {[%clk 0:02:27.3]} 21... e5 {[%clk 0:02:36.8]} 22. Kg2
{[%clk 0:02:20.7]} 22... Bd6 {[%clk 0:02:32.6]} 23. h4 {[%clk 0:02:19.9]} 23...
a4 {[%clk 0:02:27.5]} 24. Qc2 {[%clk 0:02:17.4]} 24... a3 {[%clk 0:02:27.4]} 25.
b3 {[%clk 0:02:16.2]} 25... Qe7 {[%clk 0:02:24.1]} 26. N1h2 {[%clk 0:02:11.8]}
26... Rf8 {[%clk 0:02:16.6]} 27. Qe2 {[%clk 0:02:07.4]} 27... Rae8 {[%clk
0:02:10.6]} 28. Ng4 {[%clk 0:01:57]} 28... exd4 {[%clk 0:02:01.9]} 29. Nxd4
{[%clk 0:01:56.6]} 29... f5 {[%clk 0:02:01.5]} 30. Nh2 {[%clk 0:01:53.7]} 30...
f4 {[%clk 0:01:58.4]} 31. gxf4 {[%clk 0:01:06.2]} 31... Bxf4 {[%clk 0:01:55.7]}
32. Rh1 {[%clk 0:01:02.6]} 32... Qxh4 {[%clk 0:01:39.3]} 33. Ng4 {[%clk
0:00:54.1]} 33... Qe7 {[%clk 0:01:37]} 34. Qf3 {[%clk 0:00:50.8]} 34... Bg5
{[%clk 0:01:20.5]} 35. Qh3 {[%clk 0:00:43.3]} 35... g6 {[%clk 0:01:18.8]} 36.
Ne5 {[%clk 0:00:37]} 36... Qg7 {[%clk 0:00:37.7]} 37. Ne6 {[%clk 0:00:33.9]}
37... Rxe6 {[%clk 0:00:37.4]} 38. Qxe6 {[%clk 0:00:33.5]} 38... Bh6 {[%clk
0:00:15.7]} 39. d4 {[%clk 0:00:17.6]} 39... c5 {[%clk 0:00:05.5]} 40. Ng4 {[%clk
0:00:15.9]} 40... Bg5 {[%clk 0:00:04.8]} 41. dxc5 {[%clk 0:00:14.4]} 41... Be7
{[%clk 0:00:00.9]} 42. Qe5 {[%clk 0:00:14.5]} 1-0

[Event "*** Titled Tuesday Blitz"]
[Site "Chess.com"]
[Date "2021.02.02"]
[Round "4"]
[White "MVM2008"]
[Black "DinaBelenkaya"]
[Result "0-1"]
[WhiteElo "2117"]
[BlackElo "2394"]
[TimeControl "180+1"]
[EndTime "10:42:16 PST"]
[Termination "DinaBelenkaya won on time"]

1. e4 {[%clk 0:03:00.9]} 1... d5 {[%clk 0:02:55.9]} 2. exd5 {[%clk 0:03:00.5]}
2... Qxd5 {[%clk 0:02:56.8]} 3. Nc3 {[%clk 0:02:58.6]} 3... Qd8 {[%clk
0:02:55.5]} 4. Nf3 {[%clk 0:02:58.1]} 4... Nf6 {[%clk 0:02:54.4]} 5. d4 {[%clk
0:02:58]} 5... c6 {[%clk 0:02:53.8]} 6. Bc4 {[%clk 0:02:49.2]} 6... Bf5 {[%clk
0:02:47.7]} 7. Ne5 {[%clk 0:02:42.4]} 7... e6 {[%clk 0:02:47.8]} 8. g4 {[%clk
0:02:25.1]} 8... Bg6 {[%clk 0:02:46.2]} 9. h4 {[%clk 0:02:19.1]} 9... Bb4 {[%clk
0:02:45.7]} 10. f3 {[%clk 0:02:09.2]} 10... b5 {[%clk 0:01:16.3]} 11. Bb3 {[%clk
0:01:55.3]} 11... c5 {[%clk 0:01:09.8]} 12. h5 {[%clk 0:01:24.3]} 12... Bxh5
{[%clk 0:00:59]} 13. gxh5 {[%clk 0:01:19.9]} 13... cxd4 {[%clk 0:00:48.5]} 14.
Kf1 {[%clk 0:00:30.2]} 14... Qd6 {[%clk 0:00:42.6]} 15. Bf4 {[%clk 0:00:13.7]}
15... dxc3 {[%clk 0:00:42.7]} 16. bxc3 {[%clk 0:00:04.4]} 16... Qxd1+ {[%clk
0:00:37.3]} 17. Rxd1 {[%clk 0:00:05.3]} 17... Bxc3 {[%clk 0:00:32.4]} 18. a4
{[%clk 0:00:04.9]} 18... a6 {[%clk 0:00:29.9]} 19. axb5 {[%clk 0:00:02.1]} 19...
axb5 {[%clk 0:00:30.8]} 20. Kg2 {[%clk 0:00:02.6]} 20... Nbd7 {[%clk 0:00:30.3]}
21. Nxd7 {[%clk 0:00:02.5]} 21... Nxd7 {[%clk 0:00:31.2]} 22. Rd3 {[%clk
0:00:02.8]} 22... b4 {[%clk 0:00:23.8]} 23. Bc4 {[%clk 0:00:02.2]} 23... Ne5
{[%clk 0:00:20.3]} 24. Bb5+ {[%clk 0:00:01.7]} 24... Ke7 {[%clk 0:00:20.5]} 25.
Rxc3 {[%clk 0:00:02]} 25... bxc3 {[%clk 0:00:18.4]} 26. Bxe5 {[%clk 0:00:02.5]}
26... Ra5 {[%clk 0:00:18.6]} 27. Bxc3 {[%clk 0:00:01.2]} 27... Rxb5 {[%clk
0:00:18.5]} 28. Rd1 {[%clk 0:00:01.9]} 28... Rc5 {[%clk 0:00:18.3]} 29. Rd3
{[%clk 0:00:02.3]} 29... Rc4 {[%clk 0:00:17.4]} 30. Re3 {[%clk 0:00:02]} 30...
Rhc8 {[%clk 0:00:16.4]} 31. Bxg7 {[%clk 0:00:02.3]} 31... Rg8 {[%clk 0:00:15.2]}
32. h6 {[%clk 0:00:02.3]} 32... Rxc2+ {[%clk 0:00:15.4]} 33. Kg3 {[%clk
0:00:02.8]} 33... Rc4 {[%clk 0:00:15.1]} 34. f4 {[%clk 0:00:02.9]} 34... f6
{[%clk 0:00:15]} 35. Kf3 {[%clk 0:00:03.2]} 35... Kf7 {[%clk 0:00:15.3]} 36. Ra3
{[%clk 0:00:03.4]} 36... Kg6 {[%clk 0:00:14.6]} 37. Re3 {[%clk 0:00:03.3]} 37...
Re8 {[%clk 0:00:13.2]} 38. Kg4 {[%clk 0:00:03.3]} 38... e5 {[%clk 0:00:12.8]}
39. Kf3 {[%clk 0:00:01.6]} 39... Rxf4+ {[%clk 0:00:12.8]} 40. Kg3 {[%clk
0:00:02.2]} 40... Kf5 {[%clk 0:00:13.7]} 41. Ra3 {[%clk 0:00:02]} 41... Rg4+
{[%clk 0:00:13.5]} 42. Kf3 {[%clk 0:00:01.2]} 42... Rf4+ {[%clk 0:00:13.5]} 43.
Kg3 {[%clk 0:00:01.6]} 43... Rc8 {[%clk 0:00:13.8]} 44. Ra6 {[%clk 0:00:01.5]}
44... Rc3+ {[%clk 0:00:13.5]} 0-1

[Event "*** Titled Tuesday Blitz"]
[Site "Chess.com"]
[Date "2021.02.02"]
[Round "4"]
[White "almo64"]
[Black "boasovietica"]
[Result "1-0"]
[WhiteElo "2720"]
[BlackElo "2501"]
[TimeControl "180+1"]
[EndTime "10:42:17 PST"]
[Termination "almo64 won on time"]

1. d4 {[%clk 0:03:00.9]} 1... Nf6 {[%clk 0:02:58.2]} 2. Nc3 {[%clk 0:03:00.9]}
2... d5 {[%clk 0:02:50.2]} 3. Bf4 {[%clk 0:03:00.4]} 3... c6 {[%clk 0:02:47.1]}
4. e3 {[%clk 0:02:56.5]} 4... Bf5 {[%clk 0:02:45.2]} 5. Bd3 {[%clk 0:02:56.4]}
5... Bxd3 {[%clk 0:02:44.6]} 6. Qxd3 {[%clk 0:02:46.3]} 6... e6 {[%clk
0:02:40.6]} 7. O-O-O {[%clk 0:02:45.6]} 7... Bd6 {[%clk 0:02:40.2]} 8. Nge2
{[%clk 0:02:45.1]} 8... Bxf4 {[%clk 0:02:38.6]} 9. Nxf4 {[%clk 0:02:41.7]} 9...
Nbd7 {[%clk 0:02:37.2]} 10. g4 {[%clk 0:02:39]} 10... Qc7 {[%clk 0:02:24]} 11.
g5 {[%clk 0:02:36.4]} 11... Ng8 {[%clk 0:02:23.2]} 12. h4 {[%clk 0:02:09.1]}
12... O-O-O {[%clk 0:02:15.2]} 13. Kb1 {[%clk 0:01:41]} 13... Ne7 {[%clk
0:02:11.3]} 14. Nce2 {[%clk 0:01:41.1]} 14... Kb8 {[%clk 0:01:58.8]} 15. Ng3
{[%clk 0:01:30]} 15... e5 {[%clk 0:01:45.9]} 16. dxe5 {[%clk 0:01:26.7]} 16...
Qxe5 {[%clk 0:01:37.6]} 17. Qd4 {[%clk 0:01:14]} 17... Qxd4 {[%clk 0:01:13.1]}
18. exd4 {[%clk 0:01:13.5]} 18... Rde8 {[%clk 0:01:11.7]} 19. c3 {[%clk
0:00:58.5]} 19... Kc7 {[%clk 0:01:04]} 20. Rde1 {[%clk 0:00:52.8]} 20... Kd8
{[%clk 0:00:57.6]} 21. h5 {[%clk 0:00:41]} 21... Nc8 {[%clk 0:00:43.7]} 22. g6
{[%clk 0:00:22.4]} 22... hxg6 {[%clk 0:00:33.6]} 23. hxg6 {[%clk 0:00:22.5]}
23... Rxh1 {[%clk 0:00:30.8]} 24. Rxh1 {[%clk 0:00:22.2]} 24... fxg6 {[%clk
0:00:25]} 25. Rh7 {[%clk 0:00:22.3]} 25... Re7 {[%clk 0:00:10.7]} 26. Nxg6
{[%clk 0:00:20.7]} 26... Rf7 {[%clk 0:00:09.6]} 27. f4 {[%clk 0:00:19]} 27...
Nd6 {[%clk 0:00:08.6]} 28. Nh5 {[%clk 0:00:16]} 28... Nf6 {[%clk 0:00:07]} 29.
Rh8+ {[%clk 0:00:16]} 29... Kc7 {[%clk 0:00:06.9]} 30. Ne5 {[%clk 0:00:16.3]}
30... Re7 {[%clk 0:00:06.1]} 31. Kc2 {[%clk 0:00:12.9]} 31... Nxh5 {[%clk
0:00:06.2]} 32. Rxh5 {[%clk 0:00:12.7]} 32... Ne4 {[%clk 0:00:05.9]} 33. Rh8
{[%clk 0:00:10.4]} 33... Nf6 {[%clk 0:00:05.6]} 34. Rf8 {[%clk 0:00:10]} 34...
Nd7 {[%clk 0:00:05.1]} 35. Rg8 {[%clk 0:00:09.1]} 35... b6 {[%clk 0:00:01.9]}
36. Kd3 {[%clk 0:00:08.6]} 36... c5 {[%clk 0:00:02.1]} 37. Ng6 {[%clk
0:00:06.1]} 37... Rf7 {[%clk 0:00:01.7]} 38. Ke3 {[%clk 0:00:06]} 38... Nf6
{[%clk 0:00:01.7]} 39. Ra8 {[%clk 0:00:05.6]} 39... Kb7 {[%clk 0:00:01.8]} 40.
Rd8 {[%clk 0:00:05.6]} 40... Nd7 {[%clk 0:00:01.2]} 41. Ne5 {[%clk 0:00:04.8]}
1-0

[Event "*** Titled Tuesday Blitz"]
[Site "Chess.com"]
[Date "2021.02.02"]
[Round "4"]
[White "erdni1993"]
[Black "anon569"]
[Result "1-0"]
[WhiteElo "2451"]
[BlackElo "2276"]
[TimeControl "180+1"]
[EndTime "10:42:17 PST"]
[Termination "erdni1993 won on time"]

1. d4 {[%clk 0:02:57.1]} 1... Nf6 {[%clk 0:02:58.5]} 2. Nf3 {[%clk 0:02:57.6]}
2... e6 {[%clk 0:02:56.9]} 3. e3 {[%clk 0:02:58.3]} 3... b6 {[%clk 0:02:55.7]}
4. Be2 {[%clk 0:02:59.2]} 4... Bb7 {[%clk 0:02:54.4]} 5. O-O {[%clk 0:03:00.1]}
5... c5 {[%clk 0:02:51.8]} 6. Nbd2 {[%clk 0:02:56.4]} 6... Be7 {[%clk 0:02:51]}
7. b3 {[%clk 0:02:56.4]} 7... O-O {[%clk 0:02:47.1]} 8. Bb2 {[%clk 0:02:56.7]}
8... cxd4 {[%clk 0:02:43.4]} 9. Nxd4 {[%clk 0:02:56.2]} 9... d6 {[%clk
0:02:41.4]} 10. Bf3 {[%clk 0:02:56.2]} 10... Qc8 {[%clk 0:02:36.3]} 11. Bxb7
{[%clk 0:02:50]} 11... Qxb7 {[%clk 0:02:35]} 12. c4 {[%clk 0:02:50.9]} 12...
Nbd7 {[%clk 0:02:33]} 13. Qf3 {[%clk 0:02:49.2]} 13... Qxf3 {[%clk 0:02:16.7]}
14. N2xf3 {[%clk 0:02:50.1]} 14... Rfc8 {[%clk 0:02:14.6]} 15. Rad1 {[%clk
0:02:48.9]} 15... a6 {[%clk 0:02:12]} 16. Rfe1 {[%clk 0:02:39.8]} 16... Nc5
{[%clk 0:02:11.3]} 17. Ne2 {[%clk 0:02:33.1]} 17... Nfe4 {[%clk 0:02:08.3]} 18.
Ng3 {[%clk 0:02:30.5]} 18... b5 {[%clk 0:02:05.9]} 19. Nd2 {[%clk 0:02:19.9]}
19... Nxg3 {[%clk 0:02:02.3]} 20. hxg3 {[%clk 0:02:18.9]} 20... Nd3 {[%clk
0:02:02.3]} 21. Bd4 {[%clk 0:02:09.7]} 21... Nxe1 {[%clk 0:02:01.5]} 22. Rxe1
{[%clk 0:02:10.6]} 22... Rab8 {[%clk 0:01:48.5]} 23. e4 {[%clk 0:02:04.7]} 23...
Bf8 {[%clk 0:01:39.5]} 24. f3 {[%clk 0:01:57.2]} 24... a5 {[%clk 0:01:19.5]} 25.
Rd1 {[%clk 0:01:47.8]} 25... a4 {[%clk 0:01:18.1]} 26. cxb5 {[%clk 0:01:43.3]}
26... Rxb5 {[%clk 0:01:14.3]} 27. bxa4 {[%clk 0:01:42.6]} 27... Ra5 {[%clk
0:01:13.2]} 28. Nb3 {[%clk 0:01:24.2]} 28... Rxa4 {[%clk 0:01:05.9]} 29. Rd2
{[%clk 0:01:25.1]} 29... Rca8 {[%clk 0:00:55.9]} 30. Nc1 {[%clk 0:01:24.4]}
30... d5 {[%clk 0:00:55.1]} 31. Kh2 {[%clk 0:01:17]} 31... Bb4 {[%clk
0:00:44.3]} 32. Rc2 {[%clk 0:01:11.8]} 32... dxe4 {[%clk 0:00:32.6]} 33. fxe4
{[%clk 0:01:08.5]} 33... Bf8 {[%clk 0:00:25.3]} 34. Nb3 {[%clk 0:01:01.3]} 34...
Rxa2 {[%clk 0:00:22.8]} 35. Rc7 {[%clk 0:01:02.2]} 35... Rb8 {[%clk 0:00:20.5]}
36. Nc1 {[%clk 0:00:59.5]} 36... Rd2 {[%clk 0:00:16.6]} 37. Be5 {[%clk
0:00:46.6]} 37... Rbd8 {[%clk 0:00:14.1]} 38. Nb3 {[%clk 0:00:44.1]} 38... Re2
{[%clk 0:00:12.5]} 39. Rc4 {[%clk 0:00:43.6]} 39... Rd3 {[%clk 0:00:11]} 40. Nc1
{[%clk 0:00:39.3]} 40... Rdd2 {[%clk 0:00:04.1]} 41. Nxe2 {[%clk 0:00:39.2]}
41... Rxe2 {[%clk 0:00:04]} 42. Bf4 {[%clk 0:00:39.4]} 42... f6 {[%clk
0:00:03.9]} 43. Bc1 {[%clk 0:00:32.3]} 43... Kf7 {[%clk 0:00:01.8]} 44. Rc7+
{[%clk 0:00:31]} 44... Kg6 {[%clk 0:00:00.6]} 45. Rc4 {[%clk 0:00:29.4]} 1-0

[Event "*** Titled Tuesday Blitz"]
[Site "Chess.com"]
[Date "2021.02.02"]
[Round "4"]
[White "VladimirBugayev"]
[Black "Manukyan_Artak"]
[Result "1-0"]
[WhiteElo "2248"]
[BlackElo "2423"]
[TimeControl "180+1"]
[EndTime "10:42:18 PST"]
[Termination "VladimirBugayev won on time"]

1. e4 {[%clk 0:03:00.9]} 1... c6 {[%clk 0:02:59.3]} 2. d4 {[%clk 0:03:00.3]}
2... d5 {[%clk 0:02:58.3]} 3. exd5 {[%clk 0:03:00.6]} 3... cxd5 {[%clk
0:02:58.3]} 4. Bd3 {[%clk 0:03:01.3]} 4... Nc6 {[%clk 0:02:57]} 5. c3 {[%clk
0:03:01.6]} 5... e5 {[%clk 0:02:57.1]} 6. dxe5 {[%clk 0:02:56.6]} 6... Nxe5
{[%clk 0:02:58]} 7. Qe2 {[%clk 0:02:57]} 7... Qe7 {[%clk 0:02:55.2]} 8. Bb5+
{[%clk 0:02:56.6]} 8... Nc6 {[%clk 0:02:53.8]} 9. Bg5 {[%clk 0:02:42.5]} 9... f6
{[%clk 0:02:51]} 10. Be3 {[%clk 0:02:23.5]} 10... a6 {[%clk 0:02:31.3]} 11. Ba4
{[%clk 0:02:20.8]} 11... Be6 {[%clk 0:02:25]} 12. Nf3 {[%clk 0:02:16.6]} 12...
Qd6 {[%clk 0:02:11.8]} 13. Nd4 {[%clk 0:02:00]} 13... Ne7 {[%clk 0:02:05.1]} 14.
Nd2 {[%clk 0:01:50.1]} 14... Bd7 {[%clk 0:01:48.3]} 15. Bc2 {[%clk 0:01:30.1]}
15... O-O-O {[%clk 0:01:45.1]} 16. O-O-O {[%clk 0:01:23.9]} 16... Nxd4 {[%clk
0:01:36.1]} 17. Bxd4 {[%clk 0:01:22.9]} 17... Nc6 {[%clk 0:01:36]} 18. Nb3
{[%clk 0:01:00.7]} 18... Re8 {[%clk 0:01:28.8]} 19. Qd2 {[%clk 0:00:54.6]} 19...
Nxd4 {[%clk 0:01:18.1]} 20. Nxd4 {[%clk 0:00:53.1]} 20... Kb8 {[%clk 0:01:11.1]}
21. h3 {[%clk 0:00:43.5]} 21... g5 {[%clk 0:00:59.2]} 22. Rhe1 {[%clk
0:00:34.1]} 22... Rxe1 {[%clk 0:00:54]} 23. Rxe1 {[%clk 0:00:33.8]} 23... h5
{[%clk 0:00:53.5]} 24. Nf5 {[%clk 0:00:33.5]} 24... Bxf5 {[%clk 0:00:52.6]} 25.
Bxf5 {[%clk 0:00:33.6]} 25... Bh6 {[%clk 0:00:46.9]} 26. Kc2 {[%clk 0:00:30.7]}
26... g4 {[%clk 0:00:45.6]} 27. Qd3 {[%clk 0:00:30]} 27... Qf4 {[%clk
0:00:41.4]} 28. Qg3 {[%clk 0:00:25.2]} 28... Qxg3 {[%clk 0:00:37.8]} 29. fxg3
{[%clk 0:00:24.8]} 29... gxh3 {[%clk 0:00:27.4]} 30. gxh3 {[%clk 0:00:24.7]}
30... h4 {[%clk 0:00:15.3]} 31. gxh4 {[%clk 0:00:19.9]} 31... Bf4 {[%clk
0:00:15.4]} 32. Re7 {[%clk 0:00:16.6]} 32... Rxh4 {[%clk 0:00:14]} 33. Be6
{[%clk 0:00:16.7]} 33... Bc7 {[%clk 0:00:07.5]} 34. Rf7 {[%clk 0:00:13.8]} 34...
Rf4 {[%clk 0:00:06.7]} 35. Bxd5 {[%clk 0:00:13.4]} 35... Rf2+ {[%clk 0:00:06.8]}
36. Kb3 {[%clk 0:00:13.1]} 36... a5 {[%clk 0:00:07]} 37. a4 {[%clk 0:00:12.4]}
37... Kc8 {[%clk 0:00:06.4]} 38. Be6+ {[%clk 0:00:11.9]} 38... Kd8 {[%clk
0:00:06.4]} 39. Bg4 {[%clk 0:00:11.2]} 39... Be5 {[%clk 0:00:04.9]} 40. Rxb7
{[%clk 0:00:09.5]} 40... f5 {[%clk 0:00:04.7]} 41. Bh5 {[%clk 0:00:08.2]} 41...
f4 {[%clk 0:00:04.2]} 42. Rf7 {[%clk 0:00:05.4]} 42... Rh2 {[%clk 0:00:01.1]}
43. Bg4 {[%clk 0:00:05.4]} 1-0